bitfinex/quotes_ETHUSD_20240820
["timestamp","ask_amount","ask_price","bid_price","bid_amount"]
[1724132719022,3.9630751,2683.7,2683.4,0.15004768]
[1724132719517,3.9630751,2683.7,2683.4,3.87663768]
[1724132719722,0.9630751,2683.7,2683.4,3.87663768]
[1724132720725,2.2741,2684.2,2683.4,6.19202768]
[1724132720920,2.2741,2684.2,2683.9,3.72581]
[1724132721146,2.2741,2684.5,2684.0,3.87521324]
[1724132721545,2.2741,2684.5,2684.0,3.87515324]
[1724132721766,2.50151,2684.5,2684.1,3.72556]
[1724132721951,2.50151,2684.5,2684.0,0.14946324]
[1724132721952,3.72535,2684.4,2684.0,0.14946324]
[1724132722183,2.50151,2684.5,2684.2,0.14926075]
[1724132722184,9.76796,2684.3,2684.2,0.14926075]
[1724132722379,13.49341,2684.3,2683.7,3.72618]
[1724132722534,3.0,2684.2,2683.8,3.72605]
[1724132722741,1.276796,2684.1,2683.8,3.87567342]
[1724132723043,3.0,2684.2,2683.8,3.87560342]
[1724132723359,5.2976,2684.3,2683.8,3.87560342]
[1724132723557,2.2976,2684.3,2684.2,3.7255]
[1724132723754,2.2976,2684.3,2684.0,3.7257]
[1724132723964,2.2976,2684.3,2684.2,0.14919337]
[1724132724163,2.850101,2684.3,2684.1,0.14929393]
[1724132724347,2.2976,2684.3,2684.2,0.14919337]
[1724132724551,2.59481,2684.5,2684.2,0.14919337]
[1724132725579,3.0,2684.4,2684.1,3.72551]
[1724132725741,3.0,2684.4,2684.3,0.14909282]
[1724132725945,3.0,2684.4,2684.2,0.14919337]
[1724132726201,3.0,2684.4,2684.0,3.72568]
[1724132726202,0.559481,2684.3,2684.0,3.72568]
[1724132726662,0.559481,2684.3,2684.0,7.45138]
[1724132727049,0.559481,2684.3,2684.0,3.72568]
[1724132727604,0.559481,2684.3,2684.0,7.45138]
[1724132727946,0.559481,2684.3,2684.1,3.72563]
[1724132728145,3.0,2684.4,2684.1,3.72563]
[1724132729023,3.0,2684.4,2684.0,3.72568]
[1724132729556,3.0,2684.4,2684.1,3.72556]
[1724132730061,2.2536,2684.3,2683.4,3.72657]
[1724132730215,4.623396,2684.2,2683.7,3.72612]
[1724132730404,0.897896,2684.2,2683.8,3.72603]
[1724132730925,2.2536,2684.0,2683.1,3.72702]
[1724132731112,4.323917,2683.9,2683.3,3.72666]
[1724132731312,4.323917,2683.9,2683.5,3.72646]
[1724132731313,0.597927,2683.9,2683.5,3.72646]
[1724132731665,2.4225,2683.8,2683.3,3.72674]
[1724132731953,2.4225,2683.8,2683.3,3.72667]
[1724132732448,3.037343,2683.8,2683.3,3.72667]
[1724132733335,3.037343,2683.8,2682.9,0.7992532]
[1724132733663,2.2928,2684.0,2683.3,3.72671]
[1724132733876,2.2928,2684.0,2683.5,3.72647]
[1724132734615,6.01866,2684.0,2683.6,0.14981868]
[1724132734822,3.0,2683.9,2683.6,0.14981868]
[1724132736238,3.0,2683.9,2683.4,3.72658]
[1724132736435,3.0,2683.9,2683.5,0.14990153]
[1724132736962,6.72594,2683.9,2683.5,0.14990153]
[1724132737375,3.0,2683.9,2683.4,3.72657]
[1724132737690,3.0,2683.9,2683.6,0.14980229]
[1724132737837,9.01858,2684.0,2683.5,0.1499029]
[1724132738041,9.01858,2684.0,2683.6,0.14980229]
[1724132738224,10.3827996,2684.0,2683.4,3.72657]
[1724132738562,10.3827996,2684.0,2683.5,0.14989334]
[1724132739336,2.3892,2683.8,2683.5,0.14989334]
[1724132739539,6.11537,2683.8,2683.1,3.72695]
[1724132739727,6.11537,2683.8,2683.2,0.15020749]
[1724132739932,3.7262,2683.7,2683.2,0.15020749]
[1724132741686,3.7262,2683.7,2683.2,3.87706749]
[1724132741872,11.053047,2683.8,2683.2,3.87698749]
[1724132742284,11.053027,2683.8,2683.2,3.87698749]
[1724132742486,7.326877,2683.8,2683.2,3.87698749]
[1724132742634,6.11534,2683.8,2683.3,3.72666]
[1724132742840,2.3892,2683.8,2683.4,3.72658]
[1724132743087,2.3892,2683.8,2683.5,3.7264]
[1724132743401,2.3892,2683.8,2683.6,0.14980503]
[1724132743738,2.3892,2683.8,2683.4,3.72658]
[1724132743939,2.3892,2683.8,2683.5,0.14990563]
[1724132746142,3.000714,2683.8,2683.5,0.14990563]
[1724132746487,3.72623,2683.7,2683.6,0.14984193]
[1724132746786,3.72623,2683.7,2683.2,3.7268]
[1724132746986,3.72623,2683.7,2683.6,0.14984193]
[1724132747139,4.7715184,2683.7,2683.2,3.7268]
[1724132747373,4.7715184,2683.7,2683.3,0.15014376]
[1724132747890,4.7715184,2683.7,2683.4,0.15004314]
[1724132748040,4.7715184,2683.7,2683.2,7.45359]
[1724132748442,4.7715184,2683.7,2683.3,0.15014376]
[1724132748642,1.0452884,2683.7,2683.3,3.72675]
[1724132748877,1.0452884,2683.7,2683.4,0.15004314]
[1724132749254,3.000714,2683.8,2683.4,3.87656314]
[1724132749539,3.000714,2683.8,2683.4,7.60310314]
[1724132749877,3.000714,2683.8,2683.4,3.87656314]
[1724132754807,0.611514,2683.8,2683.5,3.72647]
[1724132755009,3.72594,2683.9,2683.5,3.72647]
[1724132755192,3.72594,2683.9,2683.6,0.14988288]
[1724132755903,3.72594,2683.9,2683.7,0.14978228]
[1724132756213,3.72594,2683.9,2683.4,3.72652]
[1724132756513,3.0,2684.1,2683.8,3.72597]
[1724132756681,2.4125,2684.4,2684.2,3.72548]
[1724132756870,3.72489,2684.7,2684.2,3.72548]
[1724132756871,2.4125,2684.7,2684.3,3.87449202]
[1724132757070,2.4125,2684.7,2684.3,0.14917202]
[1724132757071,6.13732,2684.7,2684.3,0.14917202]
[1724132757270,6.13732,2684.7,2684.2,3.72542]
[1724132757478,0.613732,2684.6,2684.3,0.14914197]
[1724132757683,0.613732,2684.6,2684.2,3.72542]
[1724132758008,0.613732,2684.6,2684.3,0.14914197]
[1724132758396,0.613732,2684.6,2684.2,7.45084]
[1724132758571,0.613732,2684.6,2684.4,0.14904143]
[1724132758790,3.7244,2685.0,2684.5,3.72498]
[1724132758993,2.4015,2685.1,2684.6,3.72493]
[1724132759392,6.12577,2685.1,2684.7,0.1486702]
[1724132760313,3.0,2685.0,2684.7,0.1486702]
[1724132760519,3.0,2685.0,2684.7,3.8734602]
[1724132760728,2.4983,2685.4,2684.7,0.1486702]
[1724132760888,2.4983,2685.4,2685.0,3.72432]
[1724132761229,2.4983,2685.4,2685.1,0.14824771]
[1724132761595,2.4983,2685.4,2684.7,3.72471]
[1724132761930,0.24983,2685.3,2684.9,3.72439]
[1724132762130,0.24983,2685.3,2685.0,0.14831134]
[1724132762328,3.72363,2685.6,2685.0,0.14831134]
[1724132762536,2.4465,2686.0,2685.0,2.60071134]
[1724132762832,6.16917,2686.3,2685.7,3.72339]
[1724132763197,6.16917,2686.3,2685.8,0.14751853]
[1724132763393,4.339677,2686.2,2685.8,0.14751853]
[1724132763729,4.339677,2686.2,2685.9,0.14736078]
[1724132764033,4.339677,2686.2,2685.5,3.72359]
[1724132764232,4.339677,2686.2,2686.0,0.14726036]
[1724132764531,4.7737747,2686.1,2685.3,3.72387]
[1724132764740,1.0508847,2686.1,2685.5,3.72369]
[1724132764891,1.0508847,2686.1,2685.7,3.72341]
[1724132765239,1.0508847,2686.1,2685.8,0.14740937]
[1724132765531,4.7737547,2686.1,2685.5,3.72369]
[1724132765708,4.7737547,2686.1,2685.6,0.14732908]
[1724132765904,2.4105,2685.8,2685.6,0.14732908]
[1724132766109,5.4105,2685.8,2685.2,3.72401]
[1724132766341,5.4105,2685.8,2685.3,0.14765365]
[1724132766757,3.72367,2685.6,2684.9,9.78837]
[1724132766958,3.72344,2685.7,2685.0,0.14795511]
[1724132766959,3.72407,2685.3,2685.0,0.14795511]
[1724132767343,7.44816,2685.3,2684.6,6.11793]
[1724132767578,9.07591,2685.2,2684.7,0.14825663]
[1724132767877,4.631931,2685.1,2684.7,0.14825663]
[1724132768031,3.0,2685.0,2684.5,3.725]
[1724132768228,3.0,2685.0,2684.8,0.14815612]
[1724132768542,3.72434,2685.1,2684.9,0.14805561]
[1724132768758,3.72434,2685.1,2684.5,3.72498]
[1724132768959,3.0,2685.0,2684.6,0.14835715]
[1724132769471,6.72441,2685.0,2684.6,0.14835715]
[1724132769644,6.72441,2685.0,2684.5,3.72506]
[1724132769839,6.72441,2685.0,2684.7,0.14825663]
[1724132770060,6.72441,2685.0,2684.6,0.14835715]
[1724132770364,7.8437575,2685.0,2684.7,0.14825663]
[1724132770583,4.1193475,2685.0,2684.7,0.14825663]
[1724132770878,7.8437475,2685.0,2684.5,3.72506]
[1724132771049,7.8437475,2685.0,2684.8,0.14815612]
[1724132771249,7.8437475,2685.0,2684.5,3.72506]
[1724132771453,13.8739475,2685.0,2684.9,0.14805561]
[1724132771653,3.72473,2684.8,2684.1,3.72558]
[1724132772181,3.72482,2684.7,2684.2,0.14875932]
[1724132772589,4.469845,2684.7,2684.2,0.14875932]
[1724132772736,3.7246,2684.9,2684.3,3.72527]
[1724132773079,7.44922,2684.9,2684.4,0.14855822]
[1724132773470,3.72469,2684.8,2684.4,0.14855822]
[1724132774053,3.72469,2684.8,2684.2,3.72548]
[1724132774267,3.72469,2684.8,2684.5,0.14845768]
[1724132774268,3.72483,2684.7,2684.5,0.14845768]
[1724132774452,3.72483,2684.7,2684.1,7.4511]
[1724132774655,3.72483,2684.7,2684.0,2.4194]
[1724132774656,3.72483,2684.7,2684.0,6.14514]
[1724132775639,3.72511,2684.5,2684.0,6.14514]
[1724132775851,3.72483,2684.7,2684.1,3.72563]
[1724132776090,5.11225375,2684.8,2684.2,3.7254]
[1724132776240,3.72481,2684.8,2684.2,3.7254]
[1724132776435,3.72481,2684.7,2684.2,3.7254]
[1724132778001,3.72481,2684.7,2684.2,7.45082]
[1724132778296,3.72457,2684.9,2684.3,3.72534]
[1724132778494,3.0,2684.8,2684.5,3.72504]
[1724132778738,3.0,2684.9,2684.5,7.45004]
[1724132778899,3.0,2685.0,2684.5,3.725]
[1724132779202,6.72441,2685.0,2684.3,7.45052]
[1724132779345,3.72484,2684.7,2684.1,3.72555]
[1724132779692,3.72497,2684.6,2684.1,3.72555]
[1724132779988,3.72497,2684.6,2684.2,0.14891488]
[1724132780575,3.72523,2684.4,2684.2,0.14891488]
[1724132780748,7.45005,2684.6,2683.9,7.45166]
[1724132781086,3.7251,2684.5,2684.0,0.14911601]
[1724132781536,3.7251,2684.5,2684.0,3.87486601]
[1724132781736,4.469975,2684.6,2684.0,3.87486601]
[1724132782030,4.469975,2684.6,2684.1,7.45128]
[1724132782235,4.469975,2684.6,2684.0,0.14911601]
[1724132782236,3.458875,2684.9,2684.3,3.72527]
[1724132782392,3.0,2684.8,2684.3,3.72527]
[1724132782741,3.0,2684.8,2684.4,0.14885026]
[1724132783443,3.76864683,2684.8,2684.4,0.14885026]
[1724132784358,3.76864683,2684.8,2684.4,3.87400026]
[1724132784520,3.0,2684.8,2684.6,3.72489]
[1724132784706,3.0,2685.0,2684.7,0.14851045]
[1724132784906,3.72393,2685.4,2684.7,2.4976]
[1724132785157,3.72393,2685.4,2684.8,0.14840993]
[1724132785336,3.72408,2685.3,2684.8,0.14840993]
[1724132785524,3.72413,2685.2,2684.7,6.22228]
[1724132785858,3.72427,2685.1,2684.8,0.14840993]
[1724132786154,4.46911,2685.1,2684.6,3.72491]
[1724132786303,3.72413,2685.2,2684.7,0.14851045]
[1724132786504,3.0,2685.1,2684.8,3.72464]
[1724132786715,3.0,2685.2,2684.9,0.14830943]
[1724132786959,3.0,2685.2,2684.4,6.14025]
[1724132787165,3.72455,2684.9,2684.5,0.1487115]
[1724132788150,4.469613,2684.8,2684.5,0.1487115]
[1724132788357,0.744903,2684.8,2684.2,6.07319]
[1724132788509,3.72453,2684.9,2684.4,3.72522]
[1724132788939,3.72453,2684.9,2684.5,0.14863232]
[1724132789393,3.72453,2684.9,2684.2,6.07311]
[1724132789545,3.72475,2684.8,2684.2,6.07311]
[1724132789747,3.72475,2684.8,2684.3,0.14882522]
[1724132789976,3.72475,2684.8,2684.2,6.07311]
[1724132790154,4.469678,2684.8,2684.3,0.14882522]
[1724132790354,4.469678,2684.8,2684.2,6.07311]
[1724132790589,4.469678,2684.8,2684.3,0.14883477]
[1724132791245,3.72486,2684.7,2684.2,6.07311]
[1724132791436,4.5442918,2684.7,2684.4,0.14873286]
[1724132791643,4.5442918,2684.7,2684.3,0.14883887]
[1724132791842,4.5442918,2684.7,2684.5,0.14863778]
[1724132792176,4.5442918,2684.7,2684.6,0.14853725]
[1724132792611,4.5442918,2684.7,2684.2,6.07311]
[1724132792767,3.72508,2684.5,2684.0,3.7257]
[1724132794907,3.7255,2684.2,2684.1,0.1490509]
[1724132795085,6.7255,2684.2,2684.1,0.1490509]
[1724132795479,3.0,2684.2,2683.9,3.72592]
[1724132795685,3.0,2684.3,2683.9,3.72592]
[1724132795900,3.0,2684.3,2684.0,0.14919924]
[1724132796105,3.672535,2684.3,2684.0,0.14919924]
[1724132796434,7.397995,2684.3,2684.0,0.14919924]
[1724132796641,6.72546,2684.3,2684.0,0.14919924]
[1724132796807,6.72546,2684.3,2683.6,6.07401]
[1724132796989,3.7255,2684.2,2684.1,0.14911096]
[1724132797348,6.7255,2684.2,2683.6,6.07401]
[1724132797658,3.72564,2684.1,2683.6,6.07401]
[1724132797841,3.72564,2684.1,2683.7,0.1495242]
[1724132800139,7.45136,2684.1,2683.7,0.1495242]
[1724132800354,7.45139,2684.1,2683.7,0.1495242]
[1724132800549,3.7258,2684.0,2683.7,0.1495242]
[1724132800859,3.72606,2683.8,2683.3,2.394]
[1724132801021,3.72606,2683.8,2683.2,3.72676]
[1724132801226,3.72627,2683.7,2683.2,3.72676]
[1724132801553,3.72606,2683.8,2683.2,3.72676]
[1724132801743,3.72606,2683.8,2683.3,3.72667]
[1724132801942,3.72592,2683.9,2683.4,3.72657]
[1724132802310,4.8983329,2683.9,2683.4,3.72657]
[1724132802538,2.3431,2683.8,2683.1,6.00494]
[1724132802723,3.72635,2683.6,2683.1,3.72694]
[1724132803051,3.7262,2683.7,2683.2,3.72688]
[1724132803750,4.82296529,2683.7,2683.0,11.51994]
[1724132804031,3.72636,2683.6,2683.1,3.72695]
[1724132804944,8.54929529,2683.7,2683.1,3.72695]
[1724132805374,4.82296529,2683.7,2683.1,3.72695]
[1724132805586,3.72634,2683.6,2683.1,3.72695]
[1724132805759,0.85493053,2683.5,2683.1,3.72695]
[1724132806292,3.72634,2683.6,2683.2,3.72689]
[1724132806643,3.72621,2683.7,2683.2,3.72689]
[1724132806946,3.0,2683.6,2683.2,3.72689]
[1724132807148,3.0,2683.6,2683.3,2.4327]
[1724132807364,6.72634,2683.6,2683.1,6.15973]
[1724132808342,3.72649,2683.5,2682.9,3.72724]
[1724132808588,3.72649,2683.5,2682.9,6.10284]
[1724132808793,7.45304,2683.5,2683.0,3.72715]
[1724132808946,3.72649,2683.5,2683.0,3.72715]
[1724132809140,5.1486305,2683.5,2683.0,3.72715]
[1724132809750,6.7264,2683.6,2683.1,7.45398]
[1724132810062,6.7264,2683.6,2683.1,3.87720624]
[1724132810641,3.72586,2684.0,2683.2,2.3395]
[1724132810845,6.01045,2684.1,2683.6,3.72633]
[1724132811044,3.0,2684.0,2683.6,3.72633]
[1724132811245,3.0,2684.0,2683.7,0.14976592]
[1724132814356,6.7258,2684.0,2683.7,0.14976592]
[1724132814772,3.72602,2683.9,2683.3,3.7267]
[1724132814999,0.672602,2683.8,2683.4,0.14877768]
[1724132815345,4.398732,2683.8,2683.4,0.14877768]
[1724132815779,4.398732,2683.8,2683.3,3.7267]
[1724132816400,0.672602,2683.8,2683.4,3.72658]
[1724132816547,3.0,2683.8,2683.4,3.72648]
[1724132816743,3.0,2683.8,2683.5,0.148688]
[1724132817389,3.0,2683.8,2683.5,3.875158]
[1724132818260,3.0,2683.8,2683.5,0.148688]
[1724132818464,4.045205,2683.8,2683.5,0.148688]
[1724132818698,4.045205,2683.8,2683.4,3.72653]
[1724132818891,7.771285,2683.8,2683.6,0.148571]
[1724132819098,7.771285,2683.8,2683.5,0.14867161]
[1724132819255,7.3492405,2683.7,2683.2,3.72681]
[1724132819455,4.8759405,2683.7,2683.2,7.45363]
[1724132819796,4.8759405,2683.7,2683.2,3.72681]
[1724132820096,4.8759405,2683.7,2683.2,7.45362]
[1724132820245,4.8759405,2683.7,2683.2,3.72681]
[1724132820449,4.8759405,2683.7,2683.2,7.45363]
[1724132820768,4.8759405,2683.7,2683.3,3.72675]
[1724132820970,1.1497305,2683.7,2683.3,3.72675]
[1724132821296,3.0,2683.8,2683.3,6.02815]
[1724132821656,3.0,2683.8,2683.4,3.72658]
[1724132822346,3.0,2683.8,2683.5,3.72647]
[1724132824182,3.0,2683.8,2683.5,7.45294]
[1724132824506,3.745,2684.2,2683.7,3.72611]
[1724132824507,3.0,2684.0,2683.7,3.72611]
[1724132824662,7.472684,2684.1,2683.6,3.72633]
[1724132824861,11.198424,2684.1,2683.8,0.14836434]
[1724132825068,11.198424,2684.1,2683.7,0.14846493]
[1724132825372,11.198414,2684.1,2683.9,0.14826376]
[1724132825587,1.1198414,2684.0,2683.8,0.14836434]
[1724132826110,1.1198414,2684.0,2683.9,0.14824737]
[1724132826611,3.6165414,2684.0,2683.5,7.45278]
[1724132826760,3.6165414,2684.0,2683.9,0.14824737]
[1724132826961,6.6165414,2684.0,2683.5,3.72639]
[1724132827204,1.40892254,2683.9,2683.3,6.02806]
[1724132827420,3.72606,2683.8,2683.3,3.72666]
[1724132827563,3.72606,2683.8,2683.1,6.00874]
[1724132827762,2.4597,2683.6,2683.1,7.45387]
[1724132827957,3.72647,2683.5,2683.1,3.72691]
[1724132828162,3.72647,2683.5,2683.2,0.1489516]
[1724132831024,6.80888293,2683.6,2683.2,0.1489516]
[1724132831870,6.81402254,2683.9,2683.2,3.8758116]
[1724132832079,9.13105,2683.9,2683.2,3.8758116]
[1724132832290,5.4051,2683.9,2683.4,3.7265]
[1724132832972,9.13105,2683.9,2683.5,0.14864974]
[1724132833299,3.0,2683.9,2683.5,0.14864974]
[1724132833828,4.15716414,2683.9,2683.5,0.14864974]
[1724132834007,4.15716414,2683.9,2683.7,3.72619]
[1724132834221,3.0,2684.1,2683.8,3.72597]
[1724132834521,6.10042,2684.4,2683.9,3.72591]
[1724132834717,7.457446,2684.4,2683.8,3.87429795]
[1724132834903,7.457446,2684.4,2684.0,0.14819871]
[1724132835116,7.457446,2684.4,2683.9,3.7259]
[1724132835318,7.457446,2684.4,2684.1,0.14809814]
[1724132835522,1.1202446,2684.3,2684.1,0.14809814]
[1724132835755,1.1202446,2684.3,2683.9,3.7259]
[1724132835914,4.8456146,2684.3,2684.2,0.14799758]
[1724132836107,4.8456146,2684.3,2683.9,3.7259]
[1724132836313,4.8456146,2684.3,2683.6,3.72623]
[1724132836314,3.0,2684.2,2683.7,3.72606]
[1724132836507,3.0,2684.2,2683.8,7.45204]
[1724132836752,4.1202446,2684.3,2683.8,3.72602]
[1724132836951,4.1202446,2684.3,2683.9,3.72582]
[1724132837121,3.0,2684.3,2684.0,3.72571]
[1724132837323,3.0,2684.5,2684.0,3.72571]
[1724132837550,6.72512,2684.5,2684.0,3.72571]
[1724132837855,6.72512,2684.5,2684.0,7.45138]
[1724132838038,6.72512,2684.5,2684.0,3.72569]
[1724132838352,2.3273,2684.6,2684.0,3.72568]
[1724132838505,2.3273,2684.6,2684.2,3.72537]
[1724132838908,9.87342,2684.8,2684.2,3.72537]
[1724132839154,6.14862,2684.8,2684.2,3.72537]
[1724132839354,2.4239,2684.8,2684.2,3.72537]
[1724132839505,7.46948,2685.0,2684.4,3.72521]
[1724132839921,7.46948,2685.0,2684.5,0.14765907]
[1724132840120,11.19396,2685.0,2684.5,0.14765907]
[1724132840317,3.72455,2684.9,2684.5,0.14765907]
[1724132840609,7.46948,2685.0,2684.5,0.14765907]
[1724132840610,3.72468,2684.8,2684.5,0.14765907]
[1724132840809,2.704368,2684.7,2684.2,3.7254]
[1724132841010,2.704368,2684.7,2684.3,0.14781099]
[1724132841233,2.704368,2684.7,2684.2,3.7254]
[1724132841453,2.704368,2684.7,2684.3,0.14779324]
[1724132841648,2.704368,2684.7,2684.2,3.7254]
[1724132841950,3.72468,2684.8,2684.3,0.14779324]
[1724132841951,3.72475,2684.8,2684.3,0.14779324]
[1724132842313,3.72475,2684.8,2684.2,6.07917]
[1724132842543,3.0,2684.7,2684.4,0.14768724]
[1724132842742,3.0,2684.7,2684.2,6.07917]
[1724132842743,3.72483,2684.7,2684.3,0.14778778]
[1724132842946,3.72477,2684.8,2684.5,0.1475867]
[1724132843132,3.72477,2684.8,2684.4,0.14768724]
[1724132843133,3.672477,2684.7,2684.4,0.14768724]
[1724132843329,3.672477,2684.7,2684.6,0.14748617]
[1724132843330,13.451377,2684.7,2684.6,0.14748617]
[1724132843533,3.72494,2684.6,2684.5,0.1475867]
[1724132843733,6.72494,2684.6,2684.0,3.72569]
[1724132843910,3.72494,2684.6,2684.0,3.72569]
[1724132844156,3.72494,2684.6,2683.8,11.14596]
[1724132844157,3.0,2684.5,2683.8,14.87188]
[1724132844466,2.3396,2684.3,2683.8,7.45188]
[1724132844610,2.3396,2684.3,2683.8,3.72592]
[1724132844806,2.3396,2684.3,2683.8,7.45189]
[1724132845008,2.3396,2684.3,2683.9,3.72588]
[1724132846525,9.971525,2684.3,2683.7,2.4325]
[1724132846735,9.971525,2684.3,2683.8,3.72603]
[1724132847044,9.971525,2684.3,2683.8,7.45201]
[1724132847553,9.06504,2684.3,2683.8,7.45201]
[1724132847731,9.06504,2684.3,2683.8,3.72598]
[1724132848726,3.0,2684.3,2683.8,6.02177]
[1724132848927,3.0,2684.4,2684.1,3.72563]
[1724132849141,6.14863,2684.6,2684.1,3.72563]
[1724132849142,3.0,2684.5,2684.1,3.72563]
[1724132849348,3.0,2684.5,2684.0,3.72571]
[1724132849349,3.0,2684.5,2684.2,3.72547]
[1724132849546,3.72469,2684.8,2684.2,6.17197]
[1724132849867,10.44947,2684.8,2684.2,7.45094]
[1724132850037,3.72481,2684.7,2684.2,3.72547]
[1724132850362,3.0,2684.6,2684.2,3.72541]
[1724132851669,3.0,2684.6,2684.3,3.72529]
[1724132851961,3.0,2684.8,2684.4,6.16812]
[1724132852171,6.72468,2684.8,2684.4,2.4429]
[1724132852340,6.72468,2684.8,2684.2,9.73801]
[1724132852719,6.19742,2684.7,2684.2,3.7254]
[1724132852923,3.0,2684.6,2684.2,3.7254]
[1724132854168,3.0,2684.6,2684.2,7.45082]
[1724132854375,3.0,2684.6,2684.2,3.7254]
[1724132854668,3.0,2684.6,2684.3,0.14772766]
[1724132854877,3.0,2684.6,2684.2,3.7254]
[1724132855171,3.0,2684.6,2684.3,0.14772766]
[1724132855673,6.72455,2684.9,2684.4,6.27073711]
[1724132855828,3.0,2684.8,2684.4,6.27073711]
[1724132856606,6.72469,2684.8,2684.4,0.14762711]
[1724132856921,1.044924,2684.7,2684.2,3.7254]
[1724132857123,3.72482,2684.7,2684.5,0.14752657]
[1724132857326,3.0,2684.8,2684.2,3.7254]
[1724132857570,3.0,2684.8,2684.6,0.14742605]
[1724132857772,6.72468,2684.8,2684.2,7.45077]
[1724132857930,8.381753,2684.8,2684.7,0.14732552]
[1724132858121,8.381753,2684.8,2684.2,3.72537]
[1724132858327,8.381753,2684.8,2684.7,0.14732552]
[1724132858841,3.72483,2684.7,2684.2,3.72537]
[1724132859043,3.72483,2684.7,2684.3,0.14772766]
[1724132859246,4.657073,2684.8,2684.3,2.4038]
[1724132859567,3.0,2684.8,2684.4,3.87276071]
[1724132862571,3.0,2684.8,2684.4,0.14758071]
[1724132862572,6.72467,2684.8,2684.4,0.14758071]
[1724132863123,3.0,2684.8,2684.4,0.14758071]
[1724132863440,6.72468,2684.8,2684.4,3.87280071]
[1724132864527,3.0,2684.8,2684.4,3.87280071]
[1724132864823,6.0276,2685.2,2684.4,0.14758071]
[1724132865038,3.0,2685.1,2684.7,3.72473]
[1724132865330,3.0,2685.2,2684.8,0.14713356]
[1724132865482,3.989055,2685.2,2684.8,0.14713356]
[1724132865684,3.989055,2685.2,2684.7,3.72473]
[1724132865879,3.989055,2685.2,2684.8,0.14713356]
[1724132866115,3.989055,2685.2,2684.7,3.72473]
[1724132866313,3.989055,2685.2,2684.9,0.14703305]
[1724132866518,3.989055,2685.2,2684.8,0.14713356]
[1724132866785,3.0,2685.2,2684.9,2.45472077]
[1724132867118,6.72417,2685.2,2684.9,0.14702077]
[1724132867304,3.0,2685.2,2684.9,0.14702077]
[1724132867508,6.72412,2685.2,2684.7,6.03239]
[1724132867709,3.0,2685.2,2685.0,0.14690116]
[1724132867924,3.672398,2685.2,2684.7,6.13728]
[1724132868125,2.2862,2685.5,2685.1,0.14679794]
[1724132868126,3.72405,2685.3,2685.1,0.14679794]
[1724132868433,3.0,2685.2,2684.8,3.72466]
[1724132868739,3.0,2685.2,2684.9,3.72453]
[1724132868891,3.0,2685.4,2684.9,3.72453]
[1724132869094,3.0,2685.4,2684.7,9.86195]
[1724132869338,3.72398,2685.3,2684.8,3.72465]
[1724132869498,3.0,2685.2,2684.8,3.72465]
[1724132869699,3.0,2685.2,2684.9,0.14699756]
[1724132871220,3.0,2685.2,2685.0,3.72438]
[1724132871410,3.0,2685.4,2685.1,0.14679657]
[1724132873337,3.0,2685.4,2685.1,2.42459657]
[1724132873901,3.0,2685.4,2685.1,6.14881657]
[1724132874148,6.72378,2685.5,2685.1,2.42459657]
[1724132874741,3.0,2685.5,2685.1,2.42459657]
[1724132874901,3.0,2685.5,2685.1,6.14877657]
[1724132875302,3.0,2685.5,2685.2,3.72409]
[1724132875518,3.0,2685.5,2685.1,2.42459657]
[1724132875755,3.0,2685.5,2685.3,0.14649191]
[1724132876016,3.0,2685.5,2685.4,0.14639144]
[1724132876249,6.7237,2685.5,2685.1,2.2778]
[1724132876417,6.7237,2685.5,2685.2,0.14659238]
[1724132877050,3.0,2685.5,2685.2,0.14659238]
[1724132878569,3.0,2685.7,2685.2,0.14659238]
[1724132878753,3.0,2685.7,2685.2,3.87066238]
[1724132878921,3.0,2685.7,2685.2,3.94513485]
[1724132879118,3.0,2685.7,2685.4,2.348]
[1724132879359,3.0,2685.8,2685.4,2.348]
[1724132879568,3.0,2685.9,2685.5,0.14628961]
[1724132879922,3.72296,2686.1,2685.5,0.14628961]
[1724132879923,3.0,2686.0,2685.5,0.14628961]
[1724132880627,6.72302,2686.0,2685.5,0.14628961]
[1724132880824,3.72328,2685.8,2685.5,0.14628961]
[1724132881024,3.72328,2685.8,2685.2,6.08121]
[1724132881025,3.72329,2685.8,2685.2,6.08121]
[1724132881269,3.72329,2685.8,2685.3,0.14643324]
[1724132881444,6.7231,2686.0,2685.3,0.14643324]
[1724132881641,6.7231,2686.0,2685.3,3.87032324]
[1724132882661,6.7231,2686.0,2685.4,3.72382]
[1724132882866,6.7231,2686.0,2685.5,0.14623231]
[1724132883224,6.7231,2686.0,2685.6,2.3156]
[1724132883430,3.0,2686.0,2685.7,0.14591545]
[1724132883660,3.0,2686.1,2685.7,0.14591545]
[1724132883868,3.72301,2686.0,2685.7,0.14591545]
[1724132884071,3.0,2685.9,2685.7,0.14591545]
[1724132884253,6.05432,2686.2,2685.7,0.14591545]
[1724132884254,3.0,2686.1,2685.7,0.14591545]
[1724132884971,6.72289,2686.1,2685.7,0.14591545]
[1724132885174,3.72314,2685.9,2685.7,0.14591545]
[1724132885329,3.72301,2686.0,2685.7,0.14591545]
[1724132885526,6.72315,2685.9,2685.7,0.14591545]
[1724132886575,1.559,2685.8,2685.7,0.14591545]
[1724132886779,5.28228,2685.8,2685.7,0.14591545]
[1724132886943,10.450223,2685.8,2685.7,0.14591545]
[1724132887148,10.450223,2685.8,2685.0,2.2562]
[1724132887149,3.72366,2685.6,2685.0,2.2562]
[1724132887348,1.559,2685.2,2685.0,2.2562]
[1724132888553,3.0,2685.5,2685.0,2.2562]
[1724132889378,3.0,2685.7,2685.1,2.3416]
[1724132889680,3.0,2685.7,2685.1,6.06575]
[1724132889833,3.0,2685.7,2685.2,3.72403]
[1724132890028,3.0,2685.9,2685.2,3.72403]